bitfinex/quotes_BTCUSD_20240828
["timestamp","ask_amount","ask_price","bid_price","bid_amount"]
[1724849254798,1.80947247,60159.0,60158.0,0.10864928]
[1724849255163,1.97802411,60159.0,60158.0,0.10864928]
[1724849255555,2.31047611,60159.0,60158.0,0.10864928]
[1724849255753,1.99402411,60159.0,60158.0,0.10864928]
[1724849256401,1.98002411,60159.0,60158.0,0.10864928]
[1724849256618,2.31247611,60159.0,60158.0,0.10864928]
[1724849256831,1.99402411,60159.0,60158.0,0.10864928]
[1724849257260,2.30847611,60159.0,60158.0,0.10864928]
[1724849257462,2.28241564,60159.0,60158.0,0.10864928]
[1724849257677,2.29641564,60159.0,60158.0,0.10864928]
[1724849257897,2.45301564,60159.0,60158.0,0.10864928]
[1724849258106,2.47601564,60159.0,60158.0,0.10864928]
[1724849258315,2.141238,60159.0,60158.0,0.10864928]
[1724849258568,2.293464,60159.0,60158.0,0.10864928]
[1724849258989,2.67563081,60159.0,60158.0,0.10864928]
[1724849259425,2.639916,60159.0,60158.0,0.10864928]
[1724849259876,2.625916,60159.0,60158.0,0.10864928]
[1724849260120,0.009,60152.0,60151.0,0.0004]
[1724849260349,2.70356933,60152.0,60151.0,0.0004]
[1724849260560,2.80356933,60152.0,60151.0,0.0004]
[1724849260760,2.90425571,60152.0,60151.0,0.0004]
[1724849260958,3.07280735,60152.0,60151.0,0.0004]
[1724849261199,2.99818764,60152.0,60151.0,0.0004]
[1724849261406,3.00818764,60152.0,60151.0,0.0004]
[1724849261613,3.10768059,60152.0,60151.0,0.0004]
[1724849262242,2.98212097,60152.0,60151.0,0.0004]
[1724849262550,3.08161392,60152.0,60151.0,0.0004]
[1724849262873,3.09561392,60152.0,60151.0,0.0004]
[1724849263074,2.99612097,60152.0,60151.0,0.0004]
[1724849263507,3.0956865,60152.0,60151.0,0.0004]
[1724849263736,3.00916449,60152.0,60151.0,0.0004]
[1724849263950,3.02316449,60152.0,60151.0,0.0004]
[1724849264327,2.99516449,60152.0,60151.0,0.0004]
[1724849264533,3.1196214,60152.0,60151.0,0.0004]
[1724849264735,3.1336214,60152.0,60151.0,0.0004]
[1724849264938,2.99516449,60152.0,60151.0,0.0004]
[1724849265139,2.99516449,60152.0,60141.0,0.00902]
[1724849265140,1.70611633,60142.0,60141.0,0.00902]
[1724849265298,2.46926033,60142.0,60141.0,0.00902]
[1724849265502,2.41946476,60142.0,60141.0,0.00902]
[1724849265728,2.39249489,60142.0,60141.0,0.00902]
[1724849265934,2.72504089,60142.0,60141.0,0.00902]
[1724849266133,2.74804089,60142.0,60141.0,0.00902]
[1724849266512,2.72197233,60142.0,60141.0,0.00902]
[1724849266713,2.89052397,60142.0,60141.0,0.00902]
[1724849266934,2.90052397,60142.0,60141.0,0.00902]
[1724849267154,2.91452397,60142.0,60141.0,0.00902]
[1724849267373,2.99342397,60142.0,60141.0,0.00902]
[1724849267825,3.00742397,60142.0,60141.0,0.00902]
[1724849268044,2.85236599,60142.0,60141.0,0.00902]
[1724849268275,2.37661999,60142.0,60141.0,0.00902]
[1724849268519,2.50121185,60142.0,60141.0,0.00902]
[1724849268739,2.40269069,60142.0,60141.0,0.00902]
[1724849269219,2.52728255,60142.0,60141.0,0.00902]
[1724849269442,3.01638019,60142.0,60141.0,0.00902]
[1724849269894,3.03038019,60142.0,60141.0,0.00902]
[1724849270163,3.06580949,60142.0,60141.0,0.00902]
[1724849270376,2.95521763,60142.0,60141.0,0.00902]
[1724849270827,3.01861763,60142.0,60141.0,0.00902]
[1724849271691,3.16801521,60142.0,60141.0,0.00902]
[1724849271911,3.01861763,60142.0,60141.0,0.00902]
[1724849272536,3.00461763,60142.0,60141.0,0.00902]
[1724849273601,3.01861763,60142.0,60141.0,0.00902]
[1724849273801,3.14001521,60142.0,60141.0,0.00902]
[1724849274263,3.16801521,60142.0,60141.0,0.00902]
[1724849274696,3.01861763,60142.0,60141.0,0.00902]
[1724849274903,3.16801521,60142.0,60141.0,0.00902]
[1724849275114,3.16801521,60142.0,60138.0,0.00902]
[1724849275115,1.924991,60139.0,60138.0,0.00902]
[1724849275322,2.546001,60139.0,60138.0,0.00902]
[1724849275731,2.612501,60139.0,60138.0,0.00902]
[1724849275950,2.612501,60139.0,60116.0,0.0604]
[1724849275951,0.1669,60132.0,60116.0,0.0604]
[1724849276168,1.51441863,60132.0,60116.0,0.0604]
[1724849276374,2.17962063,60132.0,60131.0,0.10886209]
[1724849276595,2.20262063,60132.0,60131.0,0.1004]
[1724849276969,2.86782263,60132.0,60131.0,0.1004]
[1724849277388,2.88182263,60132.0,60131.0,0.1004]
[1724849277762,3.22842363,60132.0,60131.0,0.0491219]
[1724849277946,3.22842363,60132.0,60131.0,9e-07]
[1724849278165,3.17847533,60132.0,60131.0,9e-07]
[1724849278349,3.16447533,60132.0,60131.0,9e-07]
[1724849278570,3.26386648,60132.0,60131.0,9e-07]
[1724849278725,3.16349566,60132.0,60131.0,9e-07]
[1724849279132,3.27685377,60132.0,60131.0,9e-07]
[1724849279310,3.44540541,60132.0,60131.0,9e-07]
[1724849279515,3.45748211,60132.0,60131.0,9e-07]
[1724849280074,3.48548107,60132.0,60131.0,9e-07]
[1724849280278,3.44540437,60132.0,60131.0,9e-07]
[1724849280439,3.43140437,60132.0,60131.0,9e-07]
[1724849280649,3.3460473,60132.0,60131.0,9e-07]
[1724849281263,3.3600473,60132.0,60131.0,9e-07]
[1724849281435,3.45940329,60132.0,60131.0,9e-07]
[1724849281661,3.44540329,60132.0,60131.0,9e-07]
[1724849281862,3.45940329,60132.0,60131.0,9e-07]
[1724849282063,3.17749566,60132.0,60131.0,9e-07]
[1724849282291,2.42889366,60132.0,60131.0,9e-07]
[1724849282466,2.37839366,60132.0,60131.0,0.0634009]
[1724849282692,2.42604361,60132.0,60131.0,0.0634009]
[1724849282897,2.58259525,60132.0,60131.0,0.0634009]
[1724849283104,2.5329453,60132.0,60131.0,0.0634009]
[1724849283317,2.5469453,60132.0,60131.0,0.0634009]
[1724849283519,2.5449453,60132.0,60131.0,0.0634009]
[1724849283731,2.6301453,60132.0,60131.0,9e-07]
[1724849283929,2.77092299,60132.0,60131.0,9e-07]
[1724849284389,3.10350244,60132.0,60131.0,9e-07]
[1724849284803,3.08950244,60132.0,60131.0,9e-07]
[1724849285484,3.07550244,60132.0,60131.0,9e-07]
[1724849285684,2.36439366,60132.0,60131.0,9e-07]
[1724849286014,2.35039366,60132.0,60131.0,9e-07]
[1724849286527,2.48922018,60132.0,60131.0,0.000904]
[1724849286734,2.5263696,60132.0,60131.0,0.000904]
[1724849286940,3.01434324,60132.0,60131.0,0.000904]
[1724849287146,3.02834324,60132.0,60131.0,0.000904]
[1724849287361,3.01434324,60132.0,60131.0,0.000904]
[1724849287564,3.02834324,60132.0,60131.0,0.000904]
[1724849287766,3.04234324,60132.0,60131.0,0.000904]
[1724849288221,1.71661133,60122.0,60121.0,0.0621]
[1724849288423,2.33762133,60122.0,60121.0,0.0621]
[1724849288858,2.33762133,60122.0,60112.0,0.0759]
[1724849288859,0.007,60113.0,60112.0,0.0759]
[1724849289072,0.506059,60113.0,60112.0,0.0759]
[1724849289311,1.271471,60113.0,60112.0,0.0759]
[1724849289523,1.271471,60113.0,60105.0,0.1118818]
[1724849289524,1.171492,60112.0,60108.0,0.0759]
[1724849289705,2.102214,60112.0,60111.0,0.0625]
[1724849291646,1.764502,60112.0,60111.0,0.1384]
[1724849291868,1.778502,60112.0,60111.0,0.1384]
[1724849292529,1.792502,60112.0,60111.0,0.1384]
[1724849292705,1.778502,60112.0,60111.0,0.1384]
[1724849292905,1.94705364,60112.0,60111.0,0.1384]
[1724849293062,1.96605364,60112.0,60111.0,0.1384]
[1724849293304,2.29876564,60112.0,60111.0,0.1384]
[1724849293493,2.28476564,60112.0,60111.0,0.1384]
[1724849294213,2.29876564,60112.0,60111.0,0.0625]
[1724849294416,2.32176564,60112.0,60111.0,0.0004]
[1724849294617,2.30776564,60112.0,60111.0,0.0004]
[1724849294825,2.153214,60112.0,60111.0,0.0004]
[1724849295257,2.139214,60112.0,60111.0,0.0004]
[1724849295629,2.153214,60112.0,60111.0,0.0004]
[1724849295839,2.102214,60112.0,60111.0,0.0004]
[1724849296241,2.28476564,60112.0,60111.0,0.0004]
[1724849296792,2.27076564,60112.0,60111.0,0.0004]
[1724849296995,2.28476564,60112.0,60111.0,0.0004]
[1724849297393,2.29876564,60112.0,60111.0,0.0004]
[1724849297623,2.31084843,60112.0,60111.0,0.0004]
[1724849298008,2.32484843,60112.0,60111.0,0.0004]
[1724849298409,2.31284843,60112.0,60111.0,0.0004]
[1724849298610,2.14229679,60112.0,60111.0,0.0004]
[1724849298769,2.15629679,60112.0,60111.0,0.0004]
[1724849298971,2.14229679,60112.0,60111.0,0.0004]
[1724849299216,2.14229679,60112.0,60111.0,0.0013009]
[1724849299421,2.15629679,60112.0,60111.0,0.0013009]
[1724849299960,1.13916079,60112.0,60111.0,0.1401009]
[1724849300151,1.113078,60112.0,60111.0,0.1401009]
[1724849300394,1.127078,60112.0,60111.0,0.1401009]
[1724849300759,0.794366,60112.0,60111.0,0.14909409]
[1724849300774,0.794366,60112.0,60111.0,0.64816909]
[1724849300775,0.51401,60112.0,60111.0,0.64816909]
[1724849300961,0.51401,60112.0,60111.0,0.14909409]
[1724849301163,0.680366,60112.0,60111.0,0.14909409]
[1724849301715,1.027078,60112.0,60111.0,0.1401009]
[1724849301928,0.51201,60112.0,60111.0,0.1401009]
[1724849302144,0.52801,60112.0,60111.0,0.14909527]
[1724849302349,0.52801,60112.0,60111.0,0.1401009]
[1724849302557,0.51401,60112.0,60111.0,0.31545327]
[1724849302756,0.52301,60112.0,60111.0,0.14909527]
[1724849303168,0.666366,60112.0,60111.0,0.14909527]
[1724849303430,0.69244575,60112.0,60111.0,0.14909527]
[1724849303674,1.03915775,60112.0,60111.0,0.14909527]
[1724849303923,0.70644575,60112.0,60111.0,0.14909527]
[1724849304149,0.69244575,60112.0,60111.0,0.1401009]
[1724849304380,0.52608975,60112.0,60111.0,0.14909527]
[1724849304628,0.53008975,60112.0,60111.0,0.14909527]
[1724849304864,0.69644575,60112.0,60111.0,0.14909527]
[1724849305094,0.70344575,60112.0,60111.0,0.14909527]
[1724849305559,0.69244575,60112.0,60111.0,0.14909527]
[1724849305854,0.69944575,60112.0,60111.0,0.14909527]
[1724849306308,0.673366,60112.0,60111.0,0.14909527]
[1724849306988,1.015078,60112.0,60111.0,0.14909527]
[1724849307464,0.50701,60112.0,60111.0,0.14909527]
[1724849308141,0.50401,60112.0,60111.0,0.14909527]
[1724849308432,0.50001,60112.0,60111.0,0.14909527]
[1724849308673,0.51901,60112.0,60111.0,0.14909527]
[1724849308939,0.50801,60112.0,60111.0,0.14909527]
[1724849309177,0.51501,60112.0,60111.0,0.14909527]
[1724849309633,0.54108927,60112.0,60111.0,0.14909527]
[1724849310122,0.53308927,60112.0,60111.0,0.14909527]
[1724849310342,0.53708927,60112.0,60111.0,0.14909527]
[1724849311089,0.53308927,60112.0,60111.0,0.14909527]
[1724849311330,0.52608927,60112.0,60111.0,0.14909527]
[1724849311546,0.54008927,60112.0,60111.0,0.14909527]
[1724849312049,0.53408927,60112.0,60111.0,0.14909527]
[1724849313002,0.52608927,60112.0,60111.0,0.14909527]
[1724849313198,0.53508927,60112.0,60111.0,0.14909527]
[1724849313531,0.51401,60112.0,60111.0,0.14909527]
[1724849313777,0.51401,60112.0,60111.0,0.31545327]
[1724849313778,0.50901,60112.0,60111.0,0.31545327]
[1724849314240,0.51501,60112.0,60111.0,0.31545327]
[1724849314693,0.50901,60112.0,60111.0,0.31545327]
[1724849314950,0.50901,60112.0,60111.0,0.64817027]
[1724849315175,0.51401,60112.0,60111.0,0.64817027]
[1724849315412,0.50501,60112.0,60111.0,0.64817027]
[1724849315657,0.51301,60112.0,60111.0,0.64817027]
[1724849315886,0.50301,60112.0,60111.0,0.98088727]
[1724849316088,0.50301,60112.0,60111.0,1.64632127]
[1724849316357,0.50501,60112.0,60111.0,1.64632127]
[1724849316579,0.50501,60112.0,60111.0,0.64817027]
[1724849316793,0.50501,60112.0,60111.0,0.14909527]
[1724849316794,0.675366,60112.0,60111.0,0.14909527]
[1724849317001,0.51101,60112.0,60111.0,0.14909527]
[1724849317179,0.670366,60112.0,60111.0,0.14909527]
[1724849317654,0.50401,60112.0,60111.0,0.14909527]
[1724849317867,0.50001,60112.0,60111.0,0.14909527]
[1724849318349,0.50101,60112.0,60111.0,0.14909527]
[1724849318611,0.50201,60112.0,60111.0,0.14909527]
[1724849318833,0.668366,60112.0,60111.0,0.07219527]
[1724849319056,1.000078,60112.0,60111.0,0.07219527]
[1724849319284,0.667366,60112.0,60111.0,0.07219527]
[1724849319532,0.53208886,60112.0,60111.0,0.15419527]
[1724849319769,0.53208886,60112.0,60111.0,0.9769929]
[1724849319995,0.53208886,60112.0,60111.0,1.31860361]
[1724849319996,0.53708886,60112.0,60111.0,1.31860361]
[1724849320716,0.53708886,60112.0,60111.0,1.65132061]
[1724849321185,0.53208886,60112.0,60111.0,1.65132061]
[1724849322350,0.52408886,60112.0,60111.0,1.65132061]
[1724849322587,0.52408886,60112.0,60111.0,1.65332061]
[1724849322588,0.52508886,60112.0,60111.0,1.65332061]
[1724849323033,0.50001,60112.0,60111.0,1.65432061]
[1724849323470,0.002,60112.0,60111.0,1.65432061]
[1724849326342,0.0280751,60112.0,60111.0,1.65432061]
[1724849329369,0.002,60112.0,60111.0,1.65432061]
[1724849330237,0.002,60112.0,60111.0,0.15709461]
[1724849330447,0.002,60112.0,60111.0,0.01319461]
[1724849330448,0.244356,60112.0,60111.0,0.01319461]
[1724849330873,0.577068,60112.0,60111.0,0.01319461]
[1724849331083,0.244356,60112.0,60111.0,0.01319461]
[1724849331284,0.243356,60112.0,60111.0,0.01219461]
[1724849331547,1.02114874,60112.0,60111.0,0.01219461]
[1724849331765,1.03014874,60112.0,60111.0,0.01219461]
[1724849331978,0.91678,60112.0,60111.0,0.0013009]
[1724849332390,0.91878,60112.0,60111.0,0.0023009]
[1724849332822,0.91878,60112.0,60111.0,0.0013009]
[1724849333265,1.47371826,60112.0,60111.0,0.0013009]
[1724849333473,1.427192,60112.0,60111.0,0.0013009]
[1724849333658,1.422192,60112.0,60111.0,0.0013009]
[1724849334142,1.08948,60112.0,60111.0,0.0013009]
[1724849334352,1.02478,60112.0,60111.0,0.0013009]
[1724849335664,1.05086138,60112.0,60111.0,0.0013009]
[1724849335872,1.61872502,60112.0,60111.0,0.0013009]
[1724849336533,1.66852292,60112.0,60111.0,0.0013009]
[1724849336970,1.66252292,60112.0,60111.0,0.0013009]
[1724849337388,2.02113388,60112.0,60111.0,0.0013009]
[1724849337808,2.03513388,60112.0,60111.0,0.0013009]
[1724849338065,2.02113388,60112.0,60111.0,0.0013009]
[1724849338288,1.96943702,60112.0,60111.0,0.0013009]
[1724849338502,2.12093178,60112.0,60111.0,0.0013009]
[1724849338721,1.99643702,60112.0,60111.0,0.0013009]
[1724849338917,1.98343702,60112.0,60111.0,0.0013009]
[1724849339166,1.98543702,60112.0,60111.0,0.0013009]
[1724849339638,1.97335564,60112.0,60111.0,0.0013009]
[1724849340083,2.29206764,60112.0,60111.0,0.0013009]
[1724849340307,1.86121133,60106.0,60105.0,0.1118818]
[1724849340537,1.95121133,60106.0,60105.0,0.1118818]
[1724849340780,2.06084038,60106.0,60105.0,0.1118818]
[1724849340949,1.96121133,60106.0,60105.0,0.1118818]
[1724849341414,2.06084038,60106.0,60105.0,0.1118818]
[1724849341618,2.07484038,60106.0,60105.0,0.1118818]
[1724849341831,1.98876761,60106.0,60105.0,0.1118818]
[1724849342482,2.06346285,60106.0,60105.0,0.1118818]
[1724849342935,2.07746285,60106.0,60105.0,0.1118818]
[1724849343198,2.06346285,60106.0,60105.0,0.1118818]
[1724849343407,1.42876208,60106.0,60105.0,0.1118818]
[1724849343621,1.04121828,60106.0,60105.0,0.1118818]
[1724849343833,1.28016328,60106.0,60105.0,0.1118818]
[1724849344047,0.96141828,60106.0,60105.0,0.1118818]
[1724849344507,0.102,60106.0,60105.0,0.1118818]
[1724849344709,0.182372,60106.0,60105.0,0.1118818]
[1724849344935,0.196372,60106.0,60105.0,0.1118818]
[1724849345141,0.282372,60106.0,60105.0,0.1211191]
[1724849345318,0.268372,60106.0,60105.0,0.1211191]
[1724849345707,0.601117,60106.0,60105.0,0.1211191]
[1724849345924,0.947862,60106.0,60105.0,0.1211191]
[1724849346127,1.55996633,60106.0,60105.0,0.1211191]
[1724849346347,1.55996633,60106.0,60105.0,0.1118818]
[1724849346348,1.63514953,60106.0,60105.0,0.1118818]
[1724849346788,1.65414953,60106.0,60105.0,0.1118818]
[1724849347024,1.64014953,60106.0,60105.0,0.1118818]
[1724849347467,1.65414953,60106.0,60105.0,0.1118818]
[1724849347690,1.64014953,60106.0,60105.0,0.1118818]
[1724849347929,1.66814953,60106.0,60105.0,0.1118818]
[1724849348357,1.65414953,60106.0,60105.0,0.1118818]
[1724849348856,1.4043902,60106.0,60105.0,0.1118818]
[1724849349074,1.4043902,60106.0,60105.0,0.1127838]
[1724849349314,0.9879452,60106.0,60105.0,0.1127838]
[1724849350191,0.629117,60106.0,60105.0,0.1127838]
[1724849350412,0.296372,60106.0,60105.0,0.1127838]
[1724849350636,0.296372,60106.0,60105.0,0.1899838]
[1724849350865,0.296372,60106.0,60105.0,0.19919978]
[1724849351554,0.629117,60106.0,60105.0,0.19919978]
[1724849351772,0.629117,60106.0,60105.0,0.12199978]
[1724849352893,0.961862,60106.0,60105.0,0.12199978]
[1724849353355,0.961862,60106.0,60105.0,0.1127838]
[1724849354036,1.26224887,60106.0,60105.0,0.1127838]
[1724849354269,1.59999387,60106.0,60105.0,0.1127838]
[1724849354762,1.46919001,60106.0,60105.0,0.1127838]
[1724849355442,2.33533934,60106.0,60105.0,0.1127838]
[1724849355695,2.36833934,60106.0,60105.0,0.1127838]
[1724849355945,2.11210182,60106.0,60105.0,0.1127838]
[1724849356241,1.07054501,60106.0,60105.0,0.1127838]
[1724849356471,0.98794501,60106.0,60105.0,0.1127838]
[1724849356971,1.30669001,60106.0,60105.0,0.1127838]
[1724849357193,1.32069001,60106.0,60105.0,0.1127838]
[1724849357702,1.29269001,60106.0,60105.0,0.1127838]
[1724849357944,1.32069001,60106.0,60105.0,0.1127838]
[1724849358436,1.29269001,60106.0,60105.0,0.1127838]
[1724849358675,0.98794501,60106.0,60105.0,0.1127838]
[1724849358916,0.97394501,60106.0,60105.0,0.1127838]
[1724849359157,0.95994501,60106.0,60105.0,0.1127838]
[1724849359635,0.97394501,60106.0,60105.0,0.1127838]
[1724849360350,0.961862,60106.0,60105.0,0.1127838]
[1724849360576,1.280607,60106.0,60105.0,0.1127838]
[1724849360828,0.947862,60106.0,60105.0,0.1127838]
[1724849361595,0.961862,60106.0,60105.0,0.1127838]
[1724849361849,0.947862,60106.0,60105.0,0.1127838]
[1724849362083,0.975862,60106.0,60105.0,0.1127838]
[1724849362543,0.961862,60106.0,60105.0,0.1127838]
[1724849363942,0.933862,60106.0,60105.0,0.1127838]
[1724849364164,0.960862,60106.0,60105.0,0.1127838]
[1724849364393,0.946862,60106.0,60105.0,0.1127838]
[1724849364631,0.933862,60106.0,60105.0,0.1127838]
[1724849364859,0.957862,60106.0,60105.0,0.1127838]
[1724849366528,0.625117,60106.0,60105.0,0.1127838]
[1724849366726,0.65120002,60106.0,60105.0,0.1888838]
[1724849366945,0.30445502,60106.0,60105.0,0.1888838]
[1724849367169,0.62720002,60106.0,60105.0,0.1888838]
[1724849367382,0.62720002,60106.0,60105.0,0.19652649]
[1724849367383,0.65520002,60106.0,60105.0,0.19652649]
[1724849367612,0.64120002,60106.0,60105.0,0.19652649]
[1724849367867,0.65520002,60106.0,60105.0,0.19652649]
[1724849368095,0.64120002,60106.0,60105.0,0.19652649]
[1724849368551,0.65520002,60106.0,60105.0,0.19652649]
[1724849368773,0.64120002,60106.0,60105.0,0.19652649]
[1724849369197,0.65220002,60106.0,60105.0,0.19652649]
[1724849369420,0.65220002,60106.0,60105.0,0.12042649]
[1724849369631,0.65220002,60106.0,60105.0,0.1127838]
[1724849369849,0.65220002,60106.0,60105.0,0.1121838]
[1724849370084,0.65220002,60106.0,60105.0,0.11982649]
[1724849370287,0.640117,60106.0,60105.0,0.11982649]
[1724849371031,0.972862,60106.0,60105.0,0.1121838]
[1724849371229,1.051962,60106.0,60105.0,0.1121838]
[1724849372270,1.040962,60106.0,60105.0,0.1121838]
[1724849372471,1.387707,60106.0,60105.0,0.1121838]
[1724849373017,1.373707,60106.0,60105.0,0.1121838]
[1724849373240,1.012962,60106.0,60105.0,0.1121838]
[1724849373451,0.601117,60106.0,60105.0,0.1931838]
[1724849373668,0.280372,60106.0,60105.0,0.2577838]
[1724849373933,0.613117,60106.0,60105.0,0.2577838]
[1724849374156,0.613117,60106.0,60105.0,0.26542649]
[1724849374577,0.627117,60106.0,60105.0,0.26542649]
[1724849374790,0.639199,60106.0,60105.0,0.26542649]
[1724849374995,0.625199,60106.0,60105.0,0.26542649]
[1724849375228,0.652199,60106.0,60105.0,0.26542649]
[1724849375665,0.652199,60106.0,60105.0,0.2577838]
[1724849375875,0.652199,60106.0,60105.0,0.26542649]
[1724849376661,0.652199,60106.0,60105.0,0.18442649]
[1724849377311,1.03487137,60106.0,60105.0,0.18442649]
[1724849377519,1.1362789,60106.0,60105.0,0.11982649]
[1724849377757,1.1362789,60106.0,60105.0,0.1121838]
[1724849378194,1.061544,60106.0,60105.0,0.1121838]
[1724849378410,1.050544,60106.0,60105.0,0.1121838]
[1724849378811,1.064544,60106.0,60105.0,0.1121838]
[1724849379244,1.16440239,60106.0,60105.0,0.1121838]
[1724849379446,1.08780239,60106.0,60105.0,0.1121838]
[1724849379654,1.07380239,60106.0,60105.0,0.1121838]
[1724849379826,1.08780239,60106.0,60105.0,0.1121838]
[1724849380044,1.08780239,60106.0,60105.0,0.11976648]
[1724849380244,1.06172039,60106.0,60105.0,0.1121838]
[1724849380680,1.03372039,60106.0,60105.0,0.1121838]
[1724849380886,1.04672039,60106.0,60105.0,0.1121838]
[1724849381010,1.06072039,60106.0,60105.0,0.1121838]
[1724849382710,0.960862,60106.0,60105.0,0.1121838]
[1724849383144,1.0467729,60106.0,60105.0,0.1121838]
[1724849383616,1.06077309,60106.0,60105.0,0.1121838]
[1724849383818,1.07385521,60106.0,60105.0,0.1121838]
[1724849384037,1.08785521,60106.0,60105.0,0.1121838]
[1724849384525,1.07385521,60106.0,60105.0,0.1121838]
[1724849384708,1.08785521,60106.0,60105.0,0.1121838]
[1724849384959,1.07385521,60106.0,60105.0,0.1121838]
[1724849385160,1.06067521,60106.0,60105.0,0.1121838]
[1724849385381,0.98776412,60106.0,60105.0,0.1121838]
[1724849385611,1.52779918,60106.0,60105.0,0.1121838]
[1724849385827,1.59009918,60106.0,60105.0,0.1121838]
[1724849386923,1.56309918,60106.0,60105.0,0.1121838]
[1724849387130,1.57709918,60106.0,60105.0,0.1121838]
[1724849387560,1.56309918,60106.0,60105.0,0.1121838]
[1724849387786,1.57709918,60106.0,60105.0,0.1121838]
[1724849388029,1.59109918,60106.0,60105.0,0.1121838]
[1724849388673,1.46620912,60106.0,60105.0,0.1121838]
[1724849391021,1.40390912,60106.0,60105.0,0.1121838]
[1724849391239,0.7559691,60106.0,60105.0,0.1745838]
[1724849391433,1.0887141,60106.0,60105.0,0.1745838]
[1724849391637,0.98876412,60106.0,60105.0,0.1745838]
[1724849392247,1.06372412,60106.0,60105.0,0.1745838]
[1724849392459,1.0887141,60106.0,60105.0,0.1745838]
[1724849392669,1.4214591,60106.0,60105.0,0.1121838]
[1724849392871,1.32150912,60106.0,60105.0,0.1121838]
[1724849393286,1.295427,60106.0,60105.0,0.1121838]
[1724849393531,1.42036666,60106.0,60105.0,0.1121838]
[1724849393741,1.295427,60106.0,60105.0,0.1121838]
[1724849394174,0.962682,60106.0,60105.0,0.1121838]
[1724849394398,1.06264163,60106.0,60105.0,0.1121838]
[1724849394570,0.962682,60106.0,60105.0,0.1121838]
[1724849394793,1.295427,60106.0,60105.0,0.1121838]
[1724849394997,1.06264163,60106.0,60105.0,0.1121838]
[1724849395175,0.962682,60106.0,60105.0,0.1121838]
[1724849396255,1.06264163,60106.0,60105.0,0.1121838]
[1724849396623,1.06264972,60106.0,60105.0,0.1121838]
[1724849396857,1.0887333,60106.0,60105.0,0.1121838]
[1724849397302,0.98876475,60106.0,60105.0,0.1121838]
[1724849397728,1.08872942,60106.0,60105.0,0.1121838]
[1724849397939,0.98876475,60106.0,60105.0,0.1121838]
[1724849398154,1.08873074,60106.0,60105.0,0.1121838]
[1724849398708,0.98876475,60106.0,60105.0,0.1121838]
[1724849399973,1.11372405,60106.0,60105.0,0.1121838]
[1724849400181,0.98876475,60106.0,60105.0,0.1121838]
[1724849400377,1.0876413,60106.0,60105.0,0.1121838]
[1724849400846,0.7548963,60106.0,60105.0,0.1121838]
[1724849401065,0.39716404,60106.0,60105.0,0.1779838]
[1724849401282,0.39716404,60106.0,60105.0,0.18561695]
[1724849401516,0.629937,60106.0,60105.0,0.18561695]
[1724849401722,0.962682,60106.0,60105.0,0.18561695]
[1724849401938,1.0876413,60106.0,60105.0,0.1779838]
[1724849402140,1.0876413,60106.0,60105.0,0.1121838]
[1724849402366,1.54667864,60106.0,60105.0,0.11981695]
[1724849402574,1.378127,60106.0,60105.0,0.1121838]
[1724849403000,0.962682,60106.0,60105.0,0.1121838]
[1724849403411,1.0876553,60106.0,60105.0,0.1121838]
[1724849403673,1.295427,60106.0,60105.0,0.1121838]
[1724849403998,1.32150953,60106.0,60105.0,0.1121838]
[1724849404396,0.98876453,60106.0,60105.0,0.1121838]
[1724849404608,1.39650953,60106.0,60105.0,0.1121838]
[1724849404839,1.41950953,60106.0,60105.0,0.1121838]
[1724849405068,1.47960953,60106.0,60105.0,0.1121838]
[1724849405536,1.62958112,60106.0,60105.0,0.1121838]
[1724849405773,1.66746746,60106.0,60105.0,0.1121838]
[1724849405994,1.62958112,60106.0,60105.0,0.1121838]
[1724849406246,1.80335453,60106.0,60105.0,0.1121838]
[1724849406473,1.82735453,60106.0,60105.0,0.1121838]
[1724849406718,1.99606995,60106.0,60105.0,0.1121838]
[1724849406964,1.81335453,60106.0,60105.0,0.1121838]
[1724849407183,1.96790617,60106.0,60105.0,0.1121838]
[1724849407404,1.98190617,60106.0,60105.0,0.1121838]
[1724849407646,2.16454945,60106.0,60105.0,0.1121838]
[1724849407877,2.13854945,60106.0,60105.0,0.1121838]
[1724849408121,1.44760953,60106.0,60105.0,0.1121838]
[1724849408559,1.43360953,60106.0,60105.0,0.1121838]
[1724849408990,1.44760953,60106.0,60105.0,0.1121838]
[1724849409450,1.46160953,60106.0,60105.0,0.1121838]
[1724849409897,1.47060953,60106.0,60105.0,0.1121838]
[1724849410352,1.48460953,60106.0,60105.0,0.1121838]
[1724849410568,1.458527,60106.0,60105.0,0.1121838]
[1724849410817,1.768272,60106.0,60105.0,0.1121838]
[1724849411266,1.796272,60106.0,60105.0,0.1121838]
[1724849411493,1.93711271,60106.0,60105.0,0.1121838]
[1724849411942,1.95111271,60106.0,60105.0,0.1121838]
[1724849412157,1.95111271,60106.0,60105.0,0.1285638]
[1724849412158,1.91924492,60106.0,60105.0,0.1285638]
[1724849412578,1.773272,60106.0,60105.0,0.1285638]
[1724849412807,2.29066028,60106.0,60105.0,0.1285638]
[1724849413017,2.122017,60106.0,60105.0,0.1285638]
[1724849413228,2.108017,60106.0,60105.0,0.1285638]
[1724849413715,2.14810429,60106.0,60105.0,0.1285638]
[1724849413921,2.31665593,60106.0,60105.0,0.1285638]
[1724849414377,2.80177593,60106.0,60105.0,0.1285638]
[1724849414580,2.82827818,60106.0,60105.0,0.1285638]
[1724849415203,2.84227818,60106.0,60105.0,0.1285638]
[1724849416098,2.33898154,60106.0,60105.0,0.1285638]
[1724849416311,2.49492181,60106.0,60105.0,0.1285638]
[1724849416523,2.32847929,60106.0,60105.0,0.1285638]
[1724849416737,2.34247929,60106.0,60105.0,0.1285638]
[1724849417163,2.31447929,60106.0,60105.0,0.1285638]
[1724849417373,2.31447929,60106.0,60105.0,0.12472483]
[1724849417588,2.32847929,60106.0,60105.0,0.12472483]
[1724849417803,2.31447929,60106.0,60105.0,0.12472483]
[1724849418017,2.32847929,60106.0,60105.0,0.12472483]
[1724849418483,2.31447929,60106.0,60105.0,0.12472483]
[1724849418695,2.32847929,60106.0,60105.0,0.12472483]
[1724849418906,2.31447929,60106.0,60105.0,0.12472483]
[1724849419342,2.32847929,60106.0,60105.0,0.12472483]
[1724849419572,2.31447929,60106.0,60105.0,0.12472483]
[1724849419872,2.46903093,60106.0,60105.0,0.12472483]
[1724849420089,2.81577593,60106.0,60105.0,0.12472483]
[1724849420299,2.81566681,60106.0,60105.0,0.12472483]
[1724849420503,2.621137,60106.0,60105.0,0.12472483]
[1724849420919,2.288392,60106.0,60105.0,0.12472483]
[1724849421176,2.302392,60106.0,60105.0,0.12472483]
[1724849421393,2.274392,60106.0,60105.0,0.12472483]
[1724849421607,2.607137,60106.0,60105.0,0.12472483]
[1724849421820,2.621137,60106.0,60105.0,0.12472483]